[Event "XLII San Sebastian Open 2019"]
[Site "San Sebastian"]
[Date "2019.04.19"]
[Round "8.10"]
[White "Garcia Salamero, Gabriel"]
[Black "Knudsen, Martin"]
[Result "1-0"]
[ECO "B19"]
[WhiteElo "2177"]
[BlackElo "2016"]
[Annotator "NA"]
[PlyCount "79"]
[EventDate "2019.04.13"]
[EventType "swiss"]
[EventCountry "ESP"]
[SourceTitle "playchess.com"]
[Source "ChessBase"]
[SourceQuality "1"]
[TimeControl "5400+30"]

1. e4 {[%emt 0:00:00]} c6 {[%emt 0:00:00]} 2. d4 {[%emt 0:00:38]} d5 {[%emt 0:00:00]} 3. Nd2 {[%emt 0:00:07]} dxe4 {[%emt 0:00:00]} 4. Nxe4 {[%emt 0:00:05]} Bf5 {[%emt 0:00:02]} 5. Ng3 {[%emt 0:00:01]} Bg6 {[%emt 0:00:10]} 6. h4 {[%emt 0:00:01]} h6 {[%emt 0:00:17]} 7. Nf3 {[%emt 0:00:01]} Nd7 {[%emt 0:00:07]} 8. Bd3 {[%emt 0:00:15]} Bxd3 {[%emt 0:00:52]} 9. Qxd3 {[%emt 0:00:01]} e6 {[%emt 0:00:31]} 10. Bd2 {[%emt 0:00:02]} Qc7 {[%emt 0:01:39]} 11. O-O-O {[%emt 0:00:57]} O-O-O {[%emt 0:00:17]} 12. Qe2 {[%emt 0:00:08]} Ngf6 {[%emt 0:02:36]} 13. Ne5 {[%emt 0:00:10] B19: Classical Caro-Kann: 4...Bf5 main line} (13. Ne4 Nxe4 14. Qxe4 Nf6 15. Qe2 c5 16. g3 c4 17. Bf4 Bd6 18. Bxd6 Rxd6 19. c3 b5 20. Ne5 Nd5 21. Qf3 {0-1 (46) Givon,A (2463)-Yu,R (2558) Albena 2015}) 13... Nb6 {[%emt 0:02:10]} 14. c3 {[%emt 0:04:32]} c5 {[%emt 0:03:14]} 15. Kb1 {[%emt 0:00:02]} Bd6 {[%emt 0:01:45]} 16. f4 {[%emt 0:00:59]} Kb8 {[%emt 0:02:16]} 17. Rhf1 $146 {[%emt 0:02:53]} ({Predecessor:} 17. Be3 Nbd5 18. Rhf1 Nxe3 19. Qxe3 cxd4 20. cxd4 Nd5 {1-0 (45) Garcia Salamero,G (2180)-Tarin Casado,F (1915) Parla 2010}) 17... Rhe8 {[%emt 0:02:02]} 18. Qf3 {[%emt 0:02:03]} Ka8 {[%emt 0:04:27]} 19. Be3 {[%emt 0:10:01]} Na4 {[%emt 0:05:39]} 20. dxc5 {[%emt 0:09:35]} Bxc5 {[%emt 0:03:02]} 21. Bxc5 {[%emt 0:06:11]} Nxc5 {[%emt 0:01:04]} 22. Ne2 {[%emt 0:03:07]} Nd5 {[%emt 0:03:12]} 23. c4 {[%emt 0:12:59]} Nb4 {[%emt 0:08:33]} 24. Qa3 {[%emt 0:09:40]} Nca6 {[%emt 0:08:34]} 25. Qc3 {[%emt 0:13:42]} f6 {[%emt 0:05:59]} 26. Nf3 {[%emt 0:00:19]} Rxd1+ {[%emt 0:03:32]} 27. Rxd1 {[%emt 0:00:01]} Nc6 {[%emt 0:00:20]} 28. g3 {[%emt 0:09:23]} e5 {[%emt 0:01:46]} 29. a3 {[%emt 0:00:15]} Qb6 {[%emt 0:03:18]} 30. fxe5 {[%emt 0:01:08]} Nxe5 {[%emt 0:01:11]} 31. Nxe5 {[%emt 0:03:26]} fxe5 32. Rd5 {[%emt 0:00:08]} Qf6 {[%emt 0:02:56]} 33. c5 {[%emt 0:02:08]} Nb8 {[%emt 0:02:08]} 34. Qe3 {[%emt 0:01:25]} g5 {[%emt 0:03:13]} 35. hxg5 {[%emt 0:00:09]} hxg5 {[%emt 0:00:07]} 36. Nc3 {[%emt 0:01:14]} g4 {[%emt 0:00:42]} 37. Qe4 {[%emt 0:01:15]} Qe6 {[%emt 0:04:39]} (37... Qf3 $14) 38. Nb5 {[%emt 0:01:40]} Na6 {[%emt 0:02:50]} 39. Nd6 {[%emt 0:02:40]} Nc7 {[%emt 0:05:20]} (39... Rd8 $16) 40. Rxe5 1-0

[Event "XLII San Sebastian Open 2019"]
[Site "San Sebastian"]
[Date "2019.04.19"]
[Round "8.11"]
[White "Cabanas Jimenez, Manuel"]
[Black "Unciti Juan, Javier"]
[Result "1/2-1/2"]
[ECO "C15"]
[WhiteElo "2119"]
[BlackElo "2000"]
[Annotator "NA"]
[PlyCount "26"]
[EventDate "2019.04.13"]
[EventType "swiss"]
[EventCountry "ESP"]
[SourceTitle "playchess.com"]
[Source "ChessBase"]
[SourceQuality "1"]
[TimeControl "5400+30"]

1. e4 {[%emt 0:00:47]} e6 {[%emt 0:00:00]} 2. d4 {[%emt 0:00:07]} d5 {[%emt 0:00:00]} 3. Nc3 {[%emt 0:00:06]} Bb4 {[%emt 0:00:00]} 4. Bd2 {[%emt 0:00:07]} dxe4 {[%emt 0:00:31]} 5. Qg4 {[%emt 0:00:06]} Nf6 {[%emt 0:00:23]} 6. Qxg7 {[%emt 0:00:04]} Rg8 {[%emt 0:00:05]} 7. Qh6 {[%emt 0:00:05]} Nc6 {[%emt 0:01:34]} 8. O-O-O {[%emt 0:05:46]} Rg6 {[%emt 0:01:22]} 9. Qh4 {[%emt 0:01:03]} Rg4 {[%emt 0:01:49]} 10. Qh3 {[%emt 0:01:00]} Rg6 {[%emt 0:00:34]} 11. Qh4 {[%emt 0:10:59]} Rg4 {[%emt 0:00:28]} 12. Qh3 {[%emt 0:07:10]} Rg6 {[%emt 0:00:11]} 13. Qh4 {[%emt 0:01:39]} Rg4 {[%emt 0:09:27]} 1/2-1/2

[Event "XLII San Sebastian Open 2019"]
[Site "San Sebastian"]
[Date "2019.04.19"]
[Round "8.12"]
[White "Sanchez Arevalo, Luis"]
[Black "Pastor Alonso De Prado, Alberto"]
[Result "1-0"]
[ECO "A14"]
[WhiteElo "2020"]
[BlackElo "2090"]
[Annotator "NA"]
[PlyCount "52"]
[EventDate "2019.04.13"]
[EventType "swiss"]
[EventCountry "ESP"]
[SourceTitle "playchess.com"]
[Source "ChessBase"]
[SourceQuality "1"]
[TimeControl "5400+30"]

1. c4 {[%emt 0:00:00]} e6 {[%emt 0:00:18]} 2. g3 {[%emt 0:00:01]} d5 {[%emt 0:00:33]} 3. Nf3 {[%emt 0:00:30]} Nf6 {[%emt 0:01:23]} 4. Bg2 {[%emt 0:00:07]} Be7 {[%emt 0:00:05]} 5. O-O {[%emt 0:00:17]} O-O {[%emt 0:00:06]} 6. cxd5 {[%emt 0:00:39]} exd5 {[%emt 0:00:09]} 7. d4 {[%emt 0:00:06]} c6 {[%emt 0:00:45]} 8. Nc3 {[%emt 0:01:21]} Bf5 {[%emt 0:03:21]} 9. Nh4 {[%emt 0:03:13]} Bg4 {[%emt 0:10:43]} 10. h3 {[%emt 0:00:19]} Bc8 {[%emt 0:01:57]} 11. Qd3 {[%emt 0:06:06]} g6 {[%emt 0:03:46]} 12. Bh6 {[%emt 0:02:13]} Re8 {[%emt 0:00:11]} 13. Bg5 {[%emt 0:15:05]} Nbd7 {[%emt 0:07:11]} 14. f4 {[%emt 0:11:47]} Nh5 {[%emt 0:06:02]} 15. Bxe7 {[%emt 0:09:20]} Qxe7 {[%emt 0:00:09]} 16. Kh2 {[%emt 0:00:56]} Ndf6 {[%emt 0:09:33]} 17. f5 {[%emt 0:09:27]} Kg7 {[%emt 0:14:11]} 18. fxg6 {[%emt 0:05:06]} hxg6 {[%emt 0:03:01]} 19. Rf2 {[%emt 0:01:51]} Ne4 {[%emt 0:05:09]} 20. Nxe4 {[%emt 0:06:11]} dxe4 {[%emt 0:00:06]} 21. Qe3 {[%emt 0:00:42]} f5 {[%emt 0:01:19]} 22. Raf1 {[%emt 0:07:36]} f4 {[%emt 0:06:28]} 23. Rxf4 {[%emt 0:00:16]} Nxf4 {[%emt 0:00:06]} 24. Rxf4 {[%emt 0:00:17]} Bd7 {[%emt 0:04:12]} 25. Bxe4 {[%emt 0:04:37]} Qe6 {[%emt 0:03:49]} 26. Rg4 {[%emt 0:01:15]} Bc8 1-0

[Event "XLII San Sebastian Open 2019"]
[Site "San Sebastian"]
[Date "2019.04.20"]
[Round "9.1"]
[White "Alshameary Puente, Ismael"]
[Black "Harutjunyan, Gevorg"]
[Result "1/2-1/2"]
[ECO "D07"]
[WhiteElo "2425"]
[BlackElo "2440"]
[Annotator "NA"]
[PlyCount "69"]
[EventDate "2019.04.13"]
[EventType "swiss"]
[EventCountry "ESP"]
[SourceTitle "playchess.com"]
[Source "ChessBase"]
[SourceQuality "1"]
[TimeControl "5400+30"]

1. d4 {[%emt 0:00:00]} d5 {[%emt 0:00:00]} 2. c4 {[%emt 0:00:00]} Nc6 {[%emt 0:00:00]} 3. Nf3 {[%emt 0:00:00]} Bg4 {[%emt 0:00:00]} 4. Nc3 {[%emt 0:00:00]} e6 {[%emt 0:00:00]} 5. cxd5 {[%emt 0:01:36]} exd5 {[%emt 0:00:04]} 6. Qb3 {[%emt 0:00:48]} Bb4 {[%emt 0:02:25]} 7. e3 {[%emt 0:00:58]} Bxf3 {[%emt 0:03:52]} 8. gxf3 {[%emt 0:00:06]} Nf6 {[%emt 0:02:03]} 9. a3 {[%emt 0:06:07]} Bxc3+ $1 {[%emt 0:01:14]} 10. bxc3 {[%emt 0:01:53]} Rb8 {[%emt 0:01:14]} 11. Bd3 {[%emt 0:03:46]} O-O {[%emt 0:00:45]} 12. Qc2 $11 {[%emt 0:03:41]} Re8 {[%emt 0:02:24]} 13. O-O {[%emt 0:01:56]} Ne7 {[%emt 0:14:56]} 14. Kh1 {[%emt 0:09:20]} Qc8 {[%emt 0:05:48]} 15. Rg1 {[%emt 0:02:06]} c5 {[%emt 0:02:59]} 16. dxc5 {[%emt 0:22:24]} Qxc5 {[%emt 0:00:49]} 17. c4 {[%emt 0:00:06]} Rbc8 {[%emt 0:12:28]} 18. Bb2 {[%emt 0:00:42]} Qc6 {[%emt 0:01:07]} 19. Bxh7+ {[%emt 0:03:47]} Kf8 {[%emt 0:00:37]} 20. Bd3 {[%emt 0:01:18]} dxc4 {[%emt 0:04:40]} 21. Be4 {[%emt 0:00:04]} Qe6 {[%emt 0:18:04]} 22. Bd4 {[%emt 0:03:44]} b6 {[%emt 0:02:45]} 23. Rg5 {[%emt 0:10:16]} Nxe4 {[%emt 0:04:43]} 24. Bxg7+ {[%emt 0:00:09]} Kg8 {[%emt 0:00:02]} 25. fxe4 {[%emt 0:00:08]} Ng6 {[%emt 0:00:30]} 26. Be5 {[%emt 0:00:11]} Kf8 {[%emt 0:01:41]} 27. f4 {[%emt 0:08:34]} Nxe5 {[%emt 0:00:58]} 28. fxe5 {[%emt 0:01:57]} Rc5 {[%emt 0:02:31]} 29. Rag1 {[%emt 0:02:19]} c3 {[%emt 0:01:53]} 30. Qa4 {[%emt 0:02:08]} Qc6 {[%emt 0:03:46]} 31. Qxa7 {[%emt 0:08:35]} Qxe4+ {[%emt 0:08:09]} 32. R1g2 {[%emt 0:00:01]} Qb1+ {[%emt 0:00:56]} 33. Rg1 {[%emt 0:00:01]} Qe4+ {[%emt 0:00:29]} 34. R1g2 {[%emt 0:00:01]} Qb1+ {[%emt 0:00:25]} 35. Rg1 {[%emt 0:00:01]} 1/2-1/2

[Event "XLII San Sebastian Open 2019"]
[Site "San Sebastian"]
[Date "2019.04.20"]
[Round "9.5"]
[White "Del Rio De Angelis, Salvador G."]
[Black "Garcia Salamero, Gabriel"]
[Result "1-0"]
[ECO "D35"]
[WhiteElo "2457"]
[BlackElo "2177"]
[Annotator "ChessBase"]
[PlyCount "127"]
[EventDate "2019.04.13"]
[EventType "swiss"]
[EventCountry "ESP"]
[SourceTitle "playchess.com"]
[Source "ChessBase"]
[SourceQuality "1"]
[TimeControl "5400+30"]

1. d4 {[%emt 0:00:00]} d5 {[%emt 0:12:54]} 2. c4 {[%emt 0:00:00]} e6 {[%emt 0:00:27]} 3. Nc3 {[%emt 0:00:00]} Nf6 {[%emt 0:00:01]} 4. cxd5 {[%emt 0:00:07]} exd5 {[%emt 0:00:02]} 5. Bg5 {[%emt 0:00:10]} c6 {[%emt 0:00:01]} 6. e3 {[%emt 0:00:43]} Be7 {[%emt 0:00:01]} 7. Bd3 {[%emt 0:01:00]} O-O {[%emt 0:00:04]} 8. Qc2 {[%emt 0:00:10]} Nbd7 {[%emt 0:00:01]} 9. Nge2 {[%emt 0:00:18]} Re8 {[%emt 0:00:15]} 10. O-O {[%emt 0:00:11]} h6 {[%emt 0:00:51]} 11. Bh4 {[%emt 0:01:24]} Ne4 {[%emt 0:01:00]} 12. Bxe7 {[%emt 0:06:06]} Qxe7 {[%emt 0:00:02]} 13. b4 {[%emt 0:02:19]} Ndf6 {[%emt 0:08:08]} 14. Rab1 {[%emt 0:08:41]} Bg4 {[%emt 0:15:58]} 15. Ng3 {[%emt 0:07:27]} Bd7 {[%emt 0:01:03]} 16. Rfe1 {[%emt 0:02:56]} Rac8 {[%emt 0:03:19]} 17. Nf1 {[%emt 0:03:42]} Qd6 {[%emt 0:01:02]} 18. f3 {[%emt 0:06:55]} Ng5 {[%emt 0:00:10]} 19. Qf2 {[%emt 0:05:25]} Ne6 {[%emt 0:00:02]} 20. Ng3 {[%emt 0:01:30]} Rcd8 {[%emt 0:05:11]} 21. Nf5 {[%emt 0:01:26]} Qc7 {[%emt 0:00:42]} 22. Qg3 {[%emt 0:03:42]} Qxg3 {[%emt 0:01:05]} 23. hxg3 {[%emt 0:00:22]} Bc8 {[%emt 0:00:31]} 24. g4 {[%emt 0:00:17]} g6 {[%emt 0:01:41]} 25. Ng3 {[%emt 0:00:36]} b6 {[%emt 0:01:05]} 26. Nge2 {[%emt 0:04:02]} Re7 {[%emt 0:00:29]} 27. Kf2 {[%emt 0:02:40]} Kg7 {[%emt 0:03:05]} 28. Rec1 {[%emt 0:04:01]} Bb7 {[%emt 0:00:47]} 29. Nd1 {[%emt 0:00:41]} Ne8 {[%emt 0:02:22]} 30. a4 {[%emt 0:02:40]} Nd6 {[%emt 0:00:36]} 31. a5 {[%emt 0:00:24]} Ree8 {[%emt 0:02:35]} 32. a6 {[%emt 0:03:00]} Ba8 {[%emt 0:00:08]} 33. Nf4 {[%emt 0:00:50]} Nf8 {[%emt 0:01:06]} 34. b5 {[%emt 0:01:41]} Rc8 {[%emt 0:02:26]} 35. bxc6 {[%emt 0:01:21]} Bxc6 {[%emt 0:00:29]} 36. Nc3 {[%emt 0:00:18]} Nc4 {[%emt 0:01:42]} 37. Ncxd5 {[%emt 0:02:04]} Bxd5 {[%emt 0:06:19]} 38. Nxd5 {[%emt 0:00:07]} Nd2 {[%emt 0:01:27]} 39. Rxc8 {[%emt 0:01:56]} Rxc8 {[%emt 0:00:02]} 40. Rb4 {[%emt 0:01:22]} Rc1 {[%emt 0:00:45]} 41. Ke2 {[%emt 0:01:23]} Nf1 {[%emt 0:00:53]} 42. Rb1 {[%emt 0:00:24]} Rxb1 {[%emt 0:00:59]} 43. Bxb1 {[%emt 0:00:07]} Ng3+ {[%emt 0:01:42]} 44. Kf2 {[%emt 0:00:23]} Nh1+ {[%emt 0:00:02]} 45. Kg1 {[%emt 0:00:06]} Ng3 {[%emt 0:00:06]} 46. Bd3 {[%emt 0:00:03]} h5 {[%emt 0:00:05]} 47. gxh5 {[%emt 0:00:18]} Nd7 {[%emt 0:04:12]} 48. hxg6 {[%emt 0:00:24]} fxg6 {[%emt 0:00:09]} 49. Bb5 {[%emt 0:00:31]} Nb8 {[%emt 0:01:01]} 50. e4 {[%emt 0:00:15]} Kf7 {[%emt 0:01:04]} 51. Kf2 {[%emt 0:01:26]} Nh5 {[%emt 0:00:13]} 52. Nxb6 {[%emt 0:01:08]} Nxa6 {[%emt 0:01:55]} 53. Nc8 {[%emt 0:00:05]} Nb4 {[%emt 0:00:24]} 54. Nxa7 {[%emt 0:00:16]} Nc2 {[%emt 0:01:33]} 55. Nc6 {[%emt 0:00:09]} Nf4 {[%emt 0:00:35]} 56. Bf1 {[%emt 0:05:51]} g5 {[%emt 0:05:09]} 57. g3 {[%emt 0:00:42]} Nh5 {[%emt 0:01:19]} 58. Bd3 {[%emt 0:00:14]} Na1 {[%emt 0:00:43]} 59. Na5 {[%emt 0:00:12]} Ke7 {[%emt 0:00:12]} 60. e5 {[%emt 0:00:35]} Ke6 {[%emt 0:00:37]} 61. Nb3 {[%emt 0:01:44]} Nxb3 {[%emt 0:00:24]} 62. Bc4+ {[%emt 0:00:05]} Ke7 {[%emt 0:00:02]} 63. Bxb3 {[%emt 0:00:07]} Ke8 {[%emt 0:01:13]} 64. Be6 {[%emt 0:00:49]} 1-0

[Event "XLII San Sebastian Open 2019"]
[Site "San Sebastian"]
[Date "2019.04.20"]
[Round "9.6"]
[White "Safranska, Anda"]
[Black "Suarez Garcia, Carlos"]
[Result "0-1"]
[ECO "A04"]
[WhiteElo "2167"]
[BlackElo "2424"]
[Annotator "NA"]
[PlyCount "111"]
[EventDate "2019.04.13"]
[EventType "swiss"]
[EventCountry "ESP"]
[SourceTitle "playchess.com"]
[Source "ChessBase"]
[SourceQuality "1"]
[TimeControl "5400+30"]

1. Nf3 {[%emt 0:03:24]} c5 {[%emt 0:00:00]} 2. g3 {[%emt 0:00:10]} Nc6 {[%emt 0:00:00]} 3. e4 {[%emt 0:00:53]} g6 {[%emt 0:00:01]} 4. Bg2 {[%emt 0:00:14]} Bg7 {[%emt 0:00:07]} 5. O-O {[%emt 0:00:09]} e5 {[%emt 0:00:22]} 6. c3 {[%emt 0:00:53]} Nge7 {[%emt 0:00:09]} 7. Na3 {[%emt 0:00:27]} O-O {[%emt 0:01:09]} 8. Nc2 {[%emt 0:00:37]} b6 {[%emt 0:10:21]} 9. d4 {[%emt 0:01:30]} exd4 $11 {[%emt 0:02:12]} 10. cxd4 {[%emt 0:00:05]} d6 {[%emt 0:05:53]} 11. d5 {[%emt 0:11:09]} Na5 {[%emt 0:01:11]} 12. Re1 {[%emt 0:02:06]} Nc4 {[%emt 0:09:19]} 13. Rb1 {[%emt 0:00:36]} Bg4 {[%emt 0:00:06]} 14. h3 {[%emt 0:05:47]} Bxf3 {[%emt 0:00:28]} 15. Bxf3 {[%emt 0:00:29]} Ne5 {[%emt 0:03:09]} 16. Bg2 {[%emt 0:00:24]} c4 {[%emt 0:00:54]} 17. Bf1 {[%emt 0:02:57]} Qd7 {[%emt 0:04:58]} 18. Kg2 {[%emt 0:10:57]} Qa4 {[%emt 0:09:45]} 19. Na3 {[%emt 0:01:10]} Qa6 {[%emt 0:00:05]} 20. b3 {[%emt 0:12:24]} Nd3 {[%emt 0:10:52]} 21. Bxd3 {[%emt 0:00:15]} cxd3 {[%emt 0:00:01]} 22. Re3 {[%emt 0:00:21]} f5 {[%emt 0:01:27]} 23. Qxd3 {[%emt 0:05:44]} Qxd3 {[%emt 0:00:08]} 24. Rxd3 {[%emt 0:00:05]} fxe4 {[%emt 0:00:05]} 25. Rd1 {[%emt 0:00:34]} Rf5 {[%emt 0:01:31]} 26. Nc4 {[%emt 0:10:49]} Raf8 {[%emt 0:02:09]} 27. Be3 {[%emt 0:00:06]} Nxd5 {[%emt 0:03:42]} 28. Rd2 {[%emt 0:00:19]} Nc3 {[%emt 0:03:34]} 29. Rc1 {[%emt 0:06:52]} d5 {[%emt 0:00:06]} 30. Nd6 {[%emt 0:00:47]} Rf3 {[%emt 0:07:33]} 31. Rxc3 {[%emt 0:01:30]} Bxc3 {[%emt 0:00:04]} 32. Rxd5 {[%emt 0:00:03]} Rd8 {[%emt 0:01:24]} 33. Nxe4 {[%emt 0:00:17]} Rxd5 {[%emt 0:00:06]} 34. Kxf3 {[%emt 0:00:08]} Bd4 {[%emt 0:00:56]} 35. Bd2 {[%emt 0:02:49]} Rd8 {[%emt 0:02:11]} 36. Ke2 {[%emt 0:00:08]} Bg7 {[%emt 0:01:53]} 37. f4 {[%emt 0:00:57]} h6 {[%emt 0:00:38]} 38. g4 {[%emt 0:02:49]} Kf7 {[%emt 0:00:03]} 39. Ng3 {[%emt 0:01:10]} Rc8 {[%emt 0:01:12]} 40. Kd3 {[%emt 0:00:06]} Rd8+ {[%emt 0:00:09]} 41. Ke2 {[%emt 0:00:04]} Bf6 {[%emt 0:04:25]} 42. Ne4 {[%emt 0:05:50]} Rd5 {[%emt 0:02:00]} 43. Be1 {[%emt 0:02:09]} Ke6 {[%emt 0:00:43]} 44. Bd2 {[%emt 0:00:21]} Kf7 {[%emt 0:02:12]} 45. Be1 {[%emt 0:00:24]} Rd7 {[%emt 0:01:04]} 46. Bd2 {[%emt 0:00:08]} Bb2 {[%emt 0:00:17]} 47. Ng3 {[%emt 0:00:19]} Rc7 {[%emt 0:00:47]} 48. f5 {[%emt 0:01:32]} Bc1 {[%emt 0:00:32]} 49. fxg6+ {[%emt 0:01:46]} Kxg6 {[%emt 0:00:03]} 50. Be1 {[%emt 0:00:07]} Bf4 {[%emt 0:00:26]} 51. Nf5 {[%emt 0:00:21]} Rc2+ {[%emt 0:00:28]} 52. Kd3 {[%emt 0:04:10]} Rxa2 {[%emt 0:00:56]} 53. Nh4+ {[%emt 0:03:35]} Kh7 {[%emt 0:00:06]} 54. Nf3 {[%emt 0:00:33]} Rb2 {[%emt 0:00:09]} 55. Kc3 {[%emt 0:01:01]} Re2 {[%emt 0:00:05]} 56. Kd4 0-1

[Event "XLII San Sebastian Open 2019"]
[Site "San Sebastian"]
[Date "2019.04.20"]
[Round "9.7"]
[White "Prieto Aranguren, Alain"]
[Black "Sanchez Arevalo, Luis"]
[Result "1-0"]
[ECO "D43"]
[WhiteElo "2257"]
[BlackElo "2020"]
[Annotator "NA"]
[PlyCount "77"]
[EventDate "2019.04.13"]
[EventType "swiss"]
[EventCountry "ESP"]
[SourceTitle "playchess.com"]
[Source "ChessBase"]
[SourceQuality "1"]
[TimeControl "5400+30"]

1. d4 {[%emt 0:00:00]} d5 {[%emt 0:00:00]} 2. c4 {[%emt 0:00:00]} c6 {[%emt 0:00:00]} 3. Nf3 {[%emt 0:00:00]} Nf6 {[%emt 0:00:00]} 4. Nc3 {[%emt 0:00:00]} e6 {[%emt 0:00:00]} 5. Bg5 {[%emt 0:00:19]} h6 {[%emt 0:00:00]} 6. Bh4 {[%emt 0:00:21]} dxc4 {[%emt 0:00:00]} 7. e4 {[%emt 0:00:34]} g5 {[%emt 0:00:06]} 8. Bg3 {[%emt 0:00:28]} b5 {[%emt 0:00:05]} 9. Be2 {[%emt 0:01:55]} Bb7 {[%emt 0:00:06]} 10. Ne5 {[%emt 0:01:18]} Nbd7 {[%emt 0:01:56]} 11. O-O {[%emt 0:01:18]} h5 {[%emt 0:01:42]} 12. Nxd7 {[%emt 0:03:06]} Qxd7 {[%emt 0:00:05]} 13. Be5 $11 {[%emt 0:02:12]} Rh6 {[%emt 0:00:09]} 14. f4 {[%emt 0:09:14]} g4 {[%emt 0:05:23]} 15. f5 {[%emt 0:05:52]} Bg7 {[%emt 0:20:41]} 16. Qd2 {[%emt 0:08:47]} O-O-O {[%emt 0:09:15]} 17. Qg5 {[%emt 0:11:05]} Rg8 {[%emt 0:00:08]} 18. fxe6 {[%emt 0:11:00]} Qxe6 {[%emt 0:00:27]} 19. Bxf6 {[%emt 0:19:11]} Rxf6 {[%emt 0:00:47]} 20. e5 {[%emt 0:00:34]} Rg6 {[%emt 0:04:07]} 21. Qxh5 {[%emt 0:01:48]} c5 {[%emt 0:17:04]} 22. Nxb5 {[%emt 0:03:33]} Qd5 {[%emt 0:01:35]} 23. Rf2 {[%emt 0:01:18]} cxd4 {[%emt 0:03:30]} 24. Bxc4 {[%emt 0:01:42]} Qxc4 {[%emt 0:06:43]} 25. Qxg6 {[%emt 0:00:06]} Qxb5 {[%emt 0:00:13]} 26. Qxf7 {[%emt 0:01:59]} Qd5 {[%emt 0:03:32]} 27. e6 {[%emt 0:00:23]} Rf8 {[%emt 0:03:06]} 28. Qxg7 {[%emt 0:00:11]} Rxf2 {[%emt 0:00:17]} 29. Qd7+ {[%emt 0:00:03]} Qxd7 {[%emt 0:01:06]} 30. exd7+ {[%emt 0:00:03]} Kxd7 {[%emt 0:00:03]} 31. Kxf2 {[%emt 0:00:08]} Kd6 {[%emt 0:00:23]} 32. h4 {[%emt 0:00:57]} gxh3 {[%emt 0:00:37]} 33. gxh3 {[%emt 0:00:05]} Be4 {[%emt 0:02:36]} 34. h4 {[%emt 0:00:09]} a5 {[%emt 0:00:31]} 35. h5 {[%emt 0:00:17]} a4 {[%emt 0:00:16]} 36. h6 {[%emt 0:00:07]} Kd5 {[%emt 0:00:32]} 37. Rg1 {[%emt 0:00:16]} Kc4 {[%emt 0:00:58]} 38. Ke2 {[%emt 0:00:45]} a3 {[%emt 0:01:33]} 39. Rc1+ {[%emt 0:00:40]} 1-0

[Event "XLII San Sebastian Open 2019"]
[Site "San Sebastian"]
[Date "2019.04.20"]
[Round "9.8"]
[White "Unciti Juan, Javier"]
[Black "Randazzo, Adrian"]
[Result "0-1"]
[ECO "A04"]
[WhiteElo "2000"]
[BlackElo "2248"]
[Annotator "NA"]
[PlyCount "67"]
[EventDate "2019.04.13"]
[EventType "swiss"]
[EventCountry "ESP"]
[SourceTitle "playchess.com"]
[Source "ChessBase"]
[SourceQuality "1"]
[TimeControl "5400+30"]

1. Nf3 {[%emt 0:00:00]} c5 {[%emt 0:00:00]} 2. g3 {[%emt 0:00:00]} Nc6 {[%emt 0:00:00]} 3. Bg2 {[%emt 0:00:12]} e5 {[%emt 0:00:19]} 4. O-O {[%emt 0:00:51]} g6 {[%emt 0:00:10]} 5. e4 {[%emt 0:04:00]} Bg7 {[%emt 0:00:13]} 6. d3 {[%emt 0:02:04]} Nge7 {[%emt 0:00:08]} 7. c3 {[%emt 0:06:11]} O-O {[%emt 0:00:26]} 8. Be3 b6 {[%emt 0:08:16]} 9. d4 {[%emt 0:10:52]} exd4 {[%emt 0:01:26]} 10. cxd4 {[%emt 0:00:03]} Ba6 {[%emt 0:00:11]} 11. Re1 {[%emt 0:00:22]} Nb4 {[%emt 0:01:37]} 12. Bf1 {[%emt 0:03:52]} Bxf1 {[%emt 0:00:19]} 13. Rxf1 {[%emt 0:01:04]} d5 {[%emt 0:01:21]} 14. e5 {[%emt 0:22:38]} cxd4 {[%emt 0:00:47]} 15. Bf4 {[%emt 0:00:33]} d3 {[%emt 0:03:56]} 16. Nc3 {[%emt 0:01:51]} Qc8 {[%emt 0:14:06]} 17. Nb5 {[%emt 0:17:13]} Qd7 {[%emt 0:12:36]} 18. Nbd4 {[%emt 0:07:03]} Rac8 {[%emt 0:23:30]} 19. Qb3 {[%emt 0:02:46]} Na6 {[%emt 0:05:57]} 20. Qxd3 {[%emt 0:01:18]} Nc5 {[%emt 0:00:05]} 21. Qe2 {[%emt 0:00:27]} Ne6 {[%emt 0:00:19]} 22. Be3 {[%emt 0:03:12]} Nxd4 {[%emt 0:01:19]} 23. Bxd4 {[%emt 0:00:19]} Nc6 {[%emt 0:00:06]} 24. Rad1 {[%emt 0:01:50]} Qg4 {[%emt 0:02:40]} 25. Rfe1 {[%emt 0:02:03]} Rfe8 {[%emt 0:02:34]} 26. Bc3 {[%emt 0:01:25]} Rcd8 {[%emt 0:00:28]} 27. Kg2 {[%emt 0:04:19]} Qa4 {[%emt 0:00:53]} 28. b3 {[%emt 0:00:42]} Qg4 {[%emt 0:00:45]} 29. h3 {[%emt 0:00:32]} Qc8 {[%emt 0:01:43]} 30. Qb5 {[%emt 0:02:45]} Qd7 {[%emt 0:01:07]} 31. a4 {[%emt 0:00:45]} h6 {[%emt 0:00:45]} 32. Qd3 {[%emt 0:00:44]} Kh7 {[%emt 0:01:41]} 33. b4 {[%emt 0:01:17]} d4 {[%emt 0:01:26]} 34. Qb5 {[%emt 0:03:47]} 0-1

[Event "XLII San Sebastian Open 2019"]
[Site "San Sebastian"]
[Date "2019.04.20"]
[Round "9.9"]
[White "Lopez Mijail, Nicolas"]
[Black "Moreno Estebanez, Patxi"]
[Result "1/2-1/2"]
[ECO "B38"]
[WhiteElo "1980"]
[BlackElo "2153"]
[Annotator "NA"]
[PlyCount "46"]
[EventDate "2019.04.13"]
[EventType "swiss"]
[EventCountry "ESP"]
[SourceTitle "playchess.com"]
[Source "ChessBase"]
[SourceQuality "1"]
[TimeControl "5400+30"]

1. e4 {[%emt 0:15:30]} c5 {[%emt 0:00:00]} 2. Nf3 {[%emt 0:00:06]} Nc6 {[%emt 0:00:12]} 3. d4 {[%emt 0:00:07]} cxd4 {[%emt 0:00:10]} 4. Nxd4 {[%emt 0:00:05]} g6 {[%emt 0:00:05]} 5. c4 {[%emt 0:00:05]} Bg7 {[%emt 0:00:07]} 6. Be3 {[%emt 0:00:06]} Nh6 {[%emt 0:03:53]} 7. Nc3 {[%emt 0:06:00]} O-O {[%emt 0:01:25]} 8. Be2 {[%emt 0:10:44]} f5 {[%emt 0:01:13]} 9. exf5 {[%emt 0:05:25]} Bxd4 {[%emt 0:01:19]} 10. Bxh6 {[%emt 0:00:54]} Rxf5 {[%emt 0:00:05]} 11. O-O {[%emt 0:01:00]} Qb6 {[%emt 0:30:37]} 12. Bf3 {[%emt 0:07:36]} Qxb2 {[%emt 0:25:50]} 13. Bxc6 {[%emt 0:00:42]} Bxf2+ {[%emt 0:01:24]} 14. Kh1 {[%emt 0:00:42]} Qxc3 {[%emt 0:06:48]} 15. Be4 {[%emt 0:19:40]} Rf6 {[%emt 0:02:23]} 16. Bd5+ {[%emt 0:00:30]} Kh8 {[%emt 0:01:18]} 17. Bg5 {[%emt 0:01:08]} Rf5 {[%emt 0:02:35]} 18. Bxe7 {[%emt 0:01:28]} Qe5 {[%emt 0:01:35]} 19. Ba3 {[%emt 0:01:07]} h6 {[%emt 0:04:19]} 20. Rb1 {[%emt 0:03:22]} Kh7 {[%emt 0:00:14]} 21. Bb2 {[%emt 0:00:58]} Qe7 {[%emt 0:01:46]} 22. Qd2 {[%emt 0:07:31]} Qe3 {[%emt 0:02:14]} 23. Qxe3 {[%emt 0:15:51]} Bxe3 {[%emt 0:00:25]} 1/2-1/2